[Event "Titled Tuesday Blitz November 22 Early 2022"]
[White "Harsha Bharathakoti"]
[Black "Ibadov, Dashgyn"]
[WhiteFideId "5078776"]
[BlackFideId "24107514"]
[WhiteElo "2523"]
[BlackElo "2208"]
[Result "1-0"]
[Round "05"]
[TimeControl "180+1"]
[Date "2022.11.23"]
[WhiteClock "0:01:08"]
[BlackClock "0:00:26"]

1. e4 {[%clk 0:03:00]}  e6 {[%clk 0:02:55]} 2. d4 {[%clk 0:03:00]}  d5 {[%clk 0:02:56]} 3. Nc3 {[%clk 0:03:00]}  Nf6 {[%clk 0:02:56]} 4. e5 {[%clk 0:02:59]}  Nfd7 {[%clk 0:02:56]} 5. Nce2 {[%clk 0:03:00]}  c5 {[%clk 0:02:56]} 6. c3 {[%clk 0:03:00]}  Nc6 {[%clk 0:02:57]} 7. Nf3 {[%clk 0:03:00]}  Qa5 {[%clk 0:02:36]} 8. a3 {[%clk 0:02:57]}  cxd4 {[%clk 0:02:28]} 9. b4 {[%clk 0:02:56]}  Qb6 {[%clk 0:02:27]} 10. cxd4 {[%clk 0:02:55]}  a5 {[%clk 0:02:26]} 11. b5 {[%clk 0:02:56]}  Qxb5 {[%clk 0:02:22]} 12. Nc3 {[%clk 0:02:56]}  Qb6 {[%clk 0:02:23]} 13. Rb1 {[%clk 0:02:56]}  Qd8 {[%clk 0:02:21]} 14. Bd3 {[%clk 0:02:55]}  Be7 {[%clk 0:02:18]} 15. h4 {[%clk 0:02:54]}  f5 {[%clk 0:02:16]} 16. Nb5 {[%clk 0:02:26]}  O-O {[%clk 0:02:13]} 17. g4 {[%clk 0:02:18]}  Nb6 {[%clk 0:01:26]} 18. gxf5 {[%clk 0:02:15]}  exf5 {[%clk 0:01:26]} 19. Bf4 {[%clk 0:02:00]}  Be6 {[%clk 0:01:15]} 20. Ng5 {[%clk 0:01:58]}  Bxg5 {[%clk 0:01:13]} 21. hxg5 {[%clk 0:01:53]}  g6 {[%clk 0:01:07]} 22. Nd6 {[%clk 0:01:37]}  Nxd4 {[%clk 0:01:00]} 23. Be3 {[%clk 0:01:36]}  Nc6 {[%clk 0:00:41]} 24. Rxb6 {[%clk 0:01:22]}  d4 {[%clk 0:00:38]} 25. Rxc6 {[%clk 0:01:14]}  bxc6 {[%clk 0:00:26]} 26. Bxd4 {[%clk 0:01:14]}  Qxg5 {[%clk 0:00:26]} 27. Qd2 {[%clk 0:01:12]}  Qg2 {[%clk 0:00:25]} 28. Qh6 {[%clk 0:01:09]}  Ra7 {[%clk 0:00:26]} 29. Bxa7 {[%clk 0:01:08]} 1-0


[Site "https://www.chess.com"]

[Event "Titled Tuesday Blitz November 22 Early 2022"]
[White "Hristodoulou, Panagiotis"]
[Black "Khamdamova, Afruza"]
[WhiteFideId "4214340"]
[BlackFideId "14210444"]
[WhiteElo "2272"]
[BlackElo "2018"]
[Result "1-0"]
[Round "05"]
[TimeControl "180+1"]
[Date "2022.11.23"]
[WhiteClock "0:00:02"]
[BlackClock "0:00:10"]

1. e4 {[%clk 0:02:54]}  e5 {[%clk 0:02:59]} 2. Nf3 {[%clk 0:02:51]}  Nf6 {[%clk 0:02:59]} 3. Nxe5 {[%clk 0:02:49]}  d6 {[%clk 0:02:59]} 4. Nf3 {[%clk 0:02:46]}  Nxe4 {[%clk 0:02:59]} 5. Nc3 {[%clk 0:02:46]}  Nxc3 {[%clk 0:02:59]} 6. dxc3 {[%clk 0:02:47]}  Be7 {[%clk 0:02:59]} 7. Be3 {[%clk 0:02:45]}  Nc6 {[%clk 0:02:59]} 8. Qd2 {[%clk 0:02:45]}  Be6 {[%clk 0:02:59]} 9. O-O-O {[%clk 0:02:41]}  Qd7 {[%clk 0:02:59]} 10. Bb5 {[%clk 0:02:40]}  a6 {[%clk 0:02:59]} 11. Bxc6 {[%clk 0:02:31]}  Qxc6 {[%clk 0:02:59]} 12. Bd4 {[%clk 0:02:31]}  Rg8 {[%clk 0:02:54]} 13. Rhe1 {[%clk 0:02:18]}  h6 {[%clk 0:02:51]} 14. b3 {[%clk 0:02:16]}  O-O-O {[%clk 0:02:50]} 15. c4 {[%clk 0:02:16]}  g5 {[%clk 0:02:46]} 16. Bc3 {[%clk 0:02:14]}  Rge8 {[%clk 0:02:45]} 17. Nd4 {[%clk 0:02:04]}  Qd7 {[%clk 0:02:27]} 18. Nxe6 {[%clk 0:01:32]}  fxe6 {[%clk 0:02:27]} 19. Qe3 {[%clk 0:01:32]}  g4 {[%clk 0:01:41]} 20. Qxh6 {[%clk 0:01:08]}  Bf8 {[%clk 0:01:18]} 21. Qh5 {[%clk 0:01:03]}  Bg7 {[%clk 0:01:11]} 22. Bxg7 {[%clk 0:00:39]}  Qxg7 {[%clk 0:01:11]} 23. Kb1 {[%clk 0:00:40]}  Rh8 {[%clk 0:00:58]} 24. Qa5 {[%clk 0:00:37]}  e5 {[%clk 0:00:58]} 25. c5 {[%clk 0:00:27]}  Rxh2 {[%clk 0:00:53]} 26. cxd6 {[%clk 0:00:24]}  Rxd6 {[%clk 0:00:44]} 27. Rd5 {[%clk 0:00:13]}  Rxg2 {[%clk 0:00:24]} 28. Rdxe5 {[%clk 0:00:11]}  Rd8 {[%clk 0:00:23]} 29. Re8 {[%clk 0:00:10]}  Qd7 {[%clk 0:00:17]} 30. Rxd8+ {[%clk 0:00:10]}  Qxd8 {[%clk 0:00:16]} 31. Qh5 {[%clk 0:00:07]}  Qf6 {[%clk 0:00:10]} 32. Qd5 {[%clk 0:00:02]} 1-0


[Site "https://www.chess.com"]

[Event "Titled Tuesday Blitz November 22 Early 2022"]
[White "Jiganchine, Roman"]
[Black "Lehtosaari, Mauri"]
[WhiteFideId "2603667"]
[BlackFideId "501999"]
[WhiteElo "2314"]
[BlackElo "2502"]
[Result "0-1"]
[Round "05"]
[TimeControl "180+1"]
[Date "2022.11.23"]
[WhiteClock "0:00:02"]
[BlackClock "0:00:16"]

1. e4 {[%clk 0:03:00]}  d5 {[%clk 0:02:59]} 2. exd5 {[%clk 0:02:58]}  Qxd5 {[%clk 0:03:00]} 3. Nc3 {[%clk 0:02:57]}  Qe5+ {[%clk 0:03:00]} 4. Nce2 {[%clk 0:02:41]}  c5 {[%clk 0:02:56]} 5. d4 {[%clk 0:02:40]}  cxd4 {[%clk 0:02:52]} 6. Qxd4 {[%clk 0:02:40]}  Qxd4 {[%clk 0:02:52]} 7. Nxd4 {[%clk 0:02:40]}  a6 {[%clk 0:02:52]} 8. Ngf3 {[%clk 0:02:39]}  Nf6 {[%clk 0:02:48]} 9. Bg5 {[%clk 0:02:38]}  Nbd7 {[%clk 0:02:47]} 10. Bd3 {[%clk 0:02:37]}  e6 {[%clk 0:02:42]} 11. Nb3 {[%clk 0:02:33]}  Bb4+ {[%clk 0:02:22]} 12. c3 {[%clk 0:02:32]}  Be7 {[%clk 0:02:22]} 13. O-O {[%clk 0:02:31]}  O-O {[%clk 0:02:11]} 14. Rfe1 {[%clk 0:02:31]}  b6 {[%clk 0:01:58]} 15. a4 {[%clk 0:02:20]}  Bb7 {[%clk 0:01:55]} 16. a5 {[%clk 0:02:20]}  b5 {[%clk 0:01:52]} 17. Rad1 {[%clk 0:02:07]}  Nc5 {[%clk 0:01:35]} 18. Nxc5 {[%clk 0:02:06]}  Bxc5 {[%clk 0:01:36]} 19. Ne5 {[%clk 0:02:04]}  Nd5 {[%clk 0:01:04]} 20. Nd7 {[%clk 0:01:56]}  Rfc8 {[%clk 0:01:03]} 21. Nxc5 {[%clk 0:01:48]}  Rxc5 {[%clk 0:01:03]} 22. Be4 {[%clk 0:01:38]}  h6 {[%clk 0:01:01]} 23. Bc1 {[%clk 0:01:12]}  Rac8 {[%clk 0:00:54]} 24. g3 {[%clk 0:01:12]}  R5c7 {[%clk 0:00:40]} 25. Bg2 {[%clk 0:01:11]}  g5 {[%clk 0:00:30]} 26. Bd2 {[%clk 0:00:54]}  Kg7 {[%clk 0:00:30]} 27. h3 {[%clk 0:00:54]}  Nf6 {[%clk 0:00:28]} 28. Bxb7 {[%clk 0:00:49]}  Rxb7 {[%clk 0:00:29]} 29. Be3 {[%clk 0:00:48]}  b4 {[%clk 0:00:27]} 30. Bd4 {[%clk 0:00:40]}  bxc3 {[%clk 0:00:25]} 31. Bxc3 {[%clk 0:00:40]}  Kg6 {[%clk 0:00:25]} 32. Rd6 {[%clk 0:00:31]}  Nd5 {[%clk 0:00:25]} 33. Rxa6 {[%clk 0:00:19]}  Nxc3 {[%clk 0:00:24]} 34. bxc3 {[%clk 0:00:20]}  Rxc3 {[%clk 0:00:25]} 35. Ra1 {[%clk 0:00:17]}  Rc2 {[%clk 0:00:22]} 36. Rb6 {[%clk 0:00:15]}  Rxb6 {[%clk 0:00:23]} 37. axb6 {[%clk 0:00:15]}  Rb2 {[%clk 0:00:23]} 38. Ra6 {[%clk 0:00:15]}  Kf5 {[%clk 0:00:22]} 39. Kg2 {[%clk 0:00:15]}  h5 {[%clk 0:00:22]} 40. Ra5+ {[%clk 0:00:14]}  e5 {[%clk 0:00:20]} 41. Ra7 {[%clk 0:00:13]}  f6 {[%clk 0:00:20]} 42. b7 {[%clk 0:00:12]}  g4 {[%clk 0:00:19]} 43. hxg4+ {[%clk 0:00:10]}  hxg4 {[%clk 0:00:20]} 44. Kg1 {[%clk 0:00:09]}  Kg5 {[%clk 0:00:19]} 45. Kg2 {[%clk 0:00:09]}  f5 {[%clk 0:00:19]} 46. Kg1 {[%clk 0:00:05]}  e4 {[%clk 0:00:18]} 47. Kg2 {[%clk 0:00:03]}  e3 {[%clk 0:00:18]} 48. Kg1 {[%clk 0:00:03]}  exf2+ {[%clk 0:00:17]} 49. Kf1 {[%clk 0:00:03]}  f4 {[%clk 0:00:17]} 50. gxf4+ {[%clk 0:00:02]}  Kh4 {[%clk 0:00:16]} 0-1


[Site "https://www.chess.com"]

[Event "Titled Tuesday Blitz November 22 Early 2022"]
[White "Jimenez Almeida, Luis David"]
[Black "Shuvalova, Polina"]
[WhiteFideId "22242244"]
[BlackFideId "24171760"]
[WhiteElo "2158"]
[BlackElo "2342"]
[Result "0-1"]
[Round "05"]
[TimeControl "180+1"]
[Date "2022.11.23"]
[WhiteClock "0:00:02"]
[BlackClock "0:00:02"]

1. e4 {[%clk 0:03:00]}  e5 {[%clk 0:02:53]} 2. Nf3 {[%clk 0:03:00]}  Nc6 {[%clk 0:02:54]} 3. Bb5 {[%clk 0:03:00]}  a6 {[%clk 0:02:53]} 4. Ba4 {[%clk 0:03:00]}  Nf6 {[%clk 0:02:54]} 5. d3 {[%clk 0:02:58]}  b5 {[%clk 0:02:53]} 6. Bb3 {[%clk 0:02:56]}  g6 {[%clk 0:02:38]} 7. Qe2 {[%clk 0:02:52]}  Bg7 {[%clk 0:02:38]} 8. c3 {[%clk 0:02:45]}  O-O {[%clk 0:02:30]} 9. a4 {[%clk 0:02:40]}  Rb8 {[%clk 0:02:27]} 10. axb5 {[%clk 0:02:39]}  axb5 {[%clk 0:02:25]} 11. Bg5 {[%clk 0:02:35]}  h6 {[%clk 0:02:18]} 12. Bxf6 {[%clk 0:02:33]}  Qxf6 {[%clk 0:02:16]} 13. Nbd2 {[%clk 0:02:25]}  d6 {[%clk 0:02:15]} 14. h3 {[%clk 0:02:25]}  Kh7 {[%clk 0:02:08]} 15. O-O {[%clk 0:02:24]}  Bd7 {[%clk 0:02:03]} 16. Bd5 {[%clk 0:02:16]}  Ne7 {[%clk 0:01:58]} 17. Bb3 {[%clk 0:02:00]}  Ra8 {[%clk 0:01:46]} 18. Rfe1 {[%clk 0:01:53]}  g5 {[%clk 0:01:43]} 19. Nh2 {[%clk 0:01:42]}  Ng6 {[%clk 0:01:38]} 20. g4 {[%clk 0:01:33]}  Nf4 {[%clk 0:01:30]} 21. Qf3 {[%clk 0:01:33]}  h5 {[%clk 0:00:58]} 22. Ndf1 {[%clk 0:01:31]}  h4 {[%clk 0:00:56]} 23. Bc2 {[%clk 0:01:21]}  Rfb8 {[%clk 0:00:48]} 24. d4 {[%clk 0:00:52]}  Kh8 {[%clk 0:00:40]} 25. d5 {[%clk 0:00:45]}  Qd8 {[%clk 0:00:37]} 26. b4 {[%clk 0:00:38]}  Bf6 {[%clk 0:00:36]} 27. Ne3 {[%clk 0:00:38]}  Rxa1 {[%clk 0:00:35]} 28. Rxa1 {[%clk 0:00:37]}  Ra8 {[%clk 0:00:36]} 29. Qd1 {[%clk 0:00:19]}  Nxh3+ {[%clk 0:00:34]} 30. Kg2 {[%clk 0:00:19]}  Nf4+ {[%clk 0:00:34]} 31. Kf3 {[%clk 0:00:20]}  Qb8 {[%clk 0:00:26]} 32. Ra5 {[%clk 0:00:18]}  Rxa5 {[%clk 0:00:17]} 33. bxa5 {[%clk 0:00:19]}  Qa7 {[%clk 0:00:18]} 34. Qa1 {[%clk 0:00:19]}  Bd8 {[%clk 0:00:18]} 35. Nf5 {[%clk 0:00:14]}  Qa6 {[%clk 0:00:15]} 36. Nf1 {[%clk 0:00:10]}  Kg8 {[%clk 0:00:14]} 37. N1e3 {[%clk 0:00:10]}  c6 {[%clk 0:00:13]} 38. dxc6 {[%clk 0:00:09]}  Bxc6 {[%clk 0:00:10]} 39. Qa2 {[%clk 0:00:09]}  Qxa5 {[%clk 0:00:06]} 40. Qb1 {[%clk 0:00:07]}  Qc7 {[%clk 0:00:04]} 41. Bb3 {[%clk 0:00:07]}  Bf6 {[%clk 0:00:04]} 42. Qa2 {[%clk 0:00:06]}  Kf8 {[%clk 0:00:03]} 43. c4 {[%clk 0:00:02]}  b4 {[%clk 0:00:02]} 44. Qd2 {[%clk 0:00:02]}  Qb7 {[%clk 0:00:01]} 45. Qxd6+ {[%clk 0:00:02]}  Kg8 {[%clk 0:00:02]} 46. Qxf6 {[%clk 0:00:02]}  Bxe4# {[%clk 0:00:02]} 0-1


[Site "https://www.chess.com"]

[Event "Titled Tuesday Blitz November 22 Early 2022"]
[White "Johnson, Ben"]
[Black "Skibbe, Willi"]
[WhiteFideId "2010917"]
[BlackFideId "4682190"]
[WhiteElo "2158"]
[BlackElo "2359"]
[Result "0-1"]
[Round "05"]
[TimeControl "180+1"]
[Date "2022.11.23"]
[WhiteClock "0:00:07"]
[BlackClock "0:00:40"]

1. Nf3 {[%clk 0:03:00]}  g6 {[%clk 0:02:55]} 2. e4 {[%clk 0:03:00]}  Bg7 {[%clk 0:02:54]} 3. d4 {[%clk 0:03:01]}  d6 {[%clk 0:02:55]} 4. Bc4 {[%clk 0:03:01]}  e6 {[%clk 0:02:53]} 5. Bg5 {[%clk 0:02:59]}  Ne7 {[%clk 0:02:52]} 6. Nc3 {[%clk 0:02:52]}  h6 {[%clk 0:02:46]} 7. Be3 {[%clk 0:02:50]}  a6 {[%clk 0:02:46]} 8. Qd2 {[%clk 0:02:47]}  b5 {[%clk 0:02:42]} 9. Bb3 {[%clk 0:02:47]}  Bb7 {[%clk 0:02:42]} 10. a3 {[%clk 0:02:44]}  Nd7 {[%clk 0:02:41]} 11. h4 {[%clk 0:02:40]}  c5 {[%clk 0:02:35]} 12. h5 {[%clk 0:02:07]}  g5 {[%clk 0:02:27]} 13. d5 {[%clk 0:01:59]}  exd5 {[%clk 0:02:21]} 14. Bxd5 {[%clk 0:01:57]}  Nxd5 {[%clk 0:02:20]} 15. Nxd5 {[%clk 0:01:47]}  Nf6 {[%clk 0:02:15]} 16. Nxf6+ {[%clk 0:01:37]}  Qxf6 {[%clk 0:02:16]} 17. e5 {[%clk 0:01:22]}  dxe5 {[%clk 0:02:04]} 18. Bxc5 {[%clk 0:01:22]}  Bxf3 {[%clk 0:01:56]} 19. gxf3 {[%clk 0:01:17]}  Qxf3 {[%clk 0:01:43]} 20. Rg1 {[%clk 0:00:32]}  Rd8 {[%clk 0:01:34]} 21. Qe2 {[%clk 0:00:31]}  Qxe2+ {[%clk 0:01:34]} 22. Kxe2 {[%clk 0:00:32]}  f5 {[%clk 0:01:31]} 23. f3 {[%clk 0:00:30]}  Kf7 {[%clk 0:01:31]} 24. Rad1 {[%clk 0:00:28]}  Bf6 {[%clk 0:01:28]} 25. b3 {[%clk 0:00:24]}  Rxd1 {[%clk 0:01:22]} 26. Rxd1 {[%clk 0:00:24]}  Rd8 {[%clk 0:01:22]} 27. Rxd8 {[%clk 0:00:18]}  Bxd8 {[%clk 0:01:23]} 28. c4 {[%clk 0:00:18]}  bxc4 {[%clk 0:01:21]} 29. bxc4 {[%clk 0:00:19]}  Be7 {[%clk 0:01:22]} 30. Bb4 {[%clk 0:00:08]}  Ke6 {[%clk 0:01:16]} 31. Ke3 {[%clk 0:00:08]}  Bd6 {[%clk 0:01:06]} 32. c5 {[%clk 0:00:07]}  Be7 {[%clk 0:01:05]} 33. Kd3 {[%clk 0:00:06]}  Kd5 {[%clk 0:01:02]} 34. c6 {[%clk 0:00:06]}  Bd8 {[%clk 0:00:53]} 35. Be7 {[%clk 0:00:06]}  Bc7 {[%clk 0:00:47]} 36. Bxg5 {[%clk 0:00:06]}  hxg5 {[%clk 0:00:42]} 37. h6 {[%clk 0:00:07]}  e4+ {[%clk 0:00:43]} 38. fxe4+ {[%clk 0:00:06]}  fxe4+ {[%clk 0:00:43]} 39. Ke2 {[%clk 0:00:07]}  Kxc6 {[%clk 0:00:39]} 40. h7 {[%clk 0:00:07]}  Be5 {[%clk 0:00:40]} 0-1


[Site "https://www.chess.com"]

[Event "Titled Tuesday Blitz November 22 Early 2022"]
[White "Keymer, Vincent"]
[Black "Ibarra Jerez, Jose Carlos"]
[WhiteFideId "12940690"]
[BlackFideId "2226332"]
[WhiteElo "2600"]
[BlackElo "2638"]
[Result "1/2-1/2"]
[Round "05"]
[TimeControl "180+1"]
[Date "2022.11.22"]
[WhiteClock "0:00:10"]
[BlackClock "0:00:12"]

1. Nf3 {[%clk 0:03:00]}  d6 {[%clk 0:02:59]} 2. d4 {[%clk 0:03:00]}  g6 {[%clk 0:02:58]} 3. g3 {[%clk 0:03:00]}  Bg7 {[%clk 0:02:59]} 4. Bg2 {[%clk 0:03:01]}  Nd7 {[%clk 0:02:58]} 5. c4 {[%clk 0:02:47]}  e5 {[%clk 0:02:57]} 6. Nc3 {[%clk 0:02:48]}  exd4 {[%clk 0:02:51]} 7. Nxd4 {[%clk 0:02:48]}  Ne7 {[%clk 0:02:51]} 8. O-O {[%clk 0:02:45]}  O-O {[%clk 0:02:52]} 9. h3 {[%clk 0:02:41]}  Re8 {[%clk 0:02:41]} 10. e4 {[%clk 0:02:40]}  Nc6 {[%clk 0:02:40]} 11. Be3 {[%clk 0:02:32]}  Nde5 {[%clk 0:02:15]} 12. b3 {[%clk 0:02:29]}  Nxd4 {[%clk 0:02:16]} 13. Bxd4 {[%clk 0:02:28]}  c5 {[%clk 0:02:17]} 14. Bxe5 {[%clk 0:02:08]}  Bxe5 {[%clk 0:02:17]} 15. Rc1 {[%clk 0:02:08]}  a6 {[%clk 0:02:15]} 16. Qd2 {[%clk 0:02:06]}  b5 {[%clk 0:02:10]} 17. cxb5 {[%clk 0:01:13]}  axb5 {[%clk 0:02:10]} 18. Nxb5 {[%clk 0:01:14]}  Ba6 {[%clk 0:02:07]} 19. a4 {[%clk 0:01:13]}  Bxb5 {[%clk 0:02:01]} 20. axb5 {[%clk 0:01:13]}  Rb8 {[%clk 0:01:52]} 21. b4 {[%clk 0:01:08]}  Rxb5 {[%clk 0:01:48]} 22. bxc5 {[%clk 0:01:08]}  dxc5 {[%clk 0:01:43]} 23. Qe2 {[%clk 0:01:06]}  Qb6 {[%clk 0:01:39]} 24. Kh2 {[%clk 0:00:59]}  Rb2 {[%clk 0:01:37]} 25. Rc2 {[%clk 0:00:58]}  Rxc2 {[%clk 0:01:27]} 26. Qxc2 {[%clk 0:00:59]}  Rb8 {[%clk 0:01:25]} 27. f4 {[%clk 0:00:45]}  Bd4 {[%clk 0:01:25]} 28. e5 {[%clk 0:00:45]}  Qb2 {[%clk 0:01:16]} 29. Qe4 {[%clk 0:00:37]}  Re8 {[%clk 0:00:38]} 30. Rb1 {[%clk 0:00:28]}  Qd2 {[%clk 0:00:34]} 31. Qc6 {[%clk 0:00:25]}  Rf8 {[%clk 0:00:29]} 32. e6 {[%clk 0:00:23]}  fxe6 {[%clk 0:00:27]} 33. Qxe6+ {[%clk 0:00:23]}  Kh8 {[%clk 0:00:28]} 34. Qe7 {[%clk 0:00:16]}  Bg7 {[%clk 0:00:19]} 35. Rb7 {[%clk 0:00:15]}  Qd4 {[%clk 0:00:18]} 36. Rd7 {[%clk 0:00:11]}  Qc3 {[%clk 0:00:18]} 37. h4 {[%clk 0:00:09]}  c4 {[%clk 0:00:16]} 38. Rc7 {[%clk 0:00:10]}  Qd4 {[%clk 0:00:15]} 39. Rd7 {[%clk 0:00:09]}  Qf6 {[%clk 0:00:13]} 40. Qxf6 {[%clk 0:00:04]}  Bxf6 {[%clk 0:00:13]} 41. Rc7 {[%clk 0:00:04]}  c3 {[%clk 0:00:14]} 42. Bd5 {[%clk 0:00:02]}  Rd8 {[%clk 0:00:14]} 43. Be4 {[%clk 0:00:02]}  Re8 {[%clk 0:00:09]} 44. Bd5 {[%clk 0:00:02]}  Re7 {[%clk 0:00:07]} 45. Rxe7 {[%clk 0:00:02]}  Bxe7 {[%clk 0:00:07]} 46. Be4 {[%clk 0:00:02]}  Kg7 {[%clk 0:00:06]} 47. Kg2 {[%clk 0:00:03]}  h6 {[%clk 0:00:06]} 48. Kf3 {[%clk 0:00:03]}  g5 {[%clk 0:00:07]} 49. fxg5 {[%clk 0:00:03]}  hxg5 {[%clk 0:00:07]} 50. hxg5 {[%clk 0:00:04]}  Bxg5 {[%clk 0:00:08]} 51. Bc2 {[%clk 0:00:05]}  Bf6 {[%clk 0:00:08]} 52. g4 {[%clk 0:00:06]}  Bg5 {[%clk 0:00:09]} 53. Ke4 {[%clk 0:00:06]}  Bd2 {[%clk 0:00:10]} 54. Kf5 {[%clk 0:00:07]}  Kh6 {[%clk 0:00:10]} 55. g5+ {[%clk 0:00:07]}  Bxg5 {[%clk 0:00:11]} 56. Ke4 {[%clk 0:00:08]}  Bd2 {[%clk 0:00:11]} 57. Kd3 {[%clk 0:00:09]}  Kg5 {[%clk 0:00:12]} 58. Kc4 {[%clk 0:00:10]}  Kf6 {[%clk 0:00:12]} 59. Kb3 {[%clk 0:00:11]}  Bc1 {[%clk 0:00:12]} 60. Kxc3 {[%clk 0:00:10]} 1/2-1/2


[Site "https://www.chess.com"]

[Event "Titled Tuesday Blitz November 22 Early 2022"]
[White "Kovacevic, Radmila"]
[Black "Vagman, Roy"]
[WhiteFideId "933171"]
[BlackFideId "2828995"]
[WhiteElo "2208"]
[BlackElo "2174"]
[Result "0-1"]
[Round "05"]
[TimeControl "180+1"]
[Date "2022.11.23"]
[WhiteClock "0:00:08"]
[BlackClock "0:00:15"]

1. e4 {[%clk 0:02:56]}  d6 {[%clk 0:03:00]} 2. d4 {[%clk 0:02:56]}  Nf6 {[%clk 0:03:00]} 3. Nc3 {[%clk 0:02:56]}  g6 {[%clk 0:03:00]} 4. Bd3 {[%clk 0:02:54]}  Bg7 {[%clk 0:03:00]} 5. Be3 {[%clk 0:02:54]}  Nc6 {[%clk 0:03:00]} 6. f3 {[%clk 0:02:54]}  e5 {[%clk 0:03:00]} 7. d5 {[%clk 0:02:51]}  Nd4 {[%clk 0:03:00]} 8. Nce2 {[%clk 0:02:49]}  c5 {[%clk 0:02:54]} 9. Ng3 {[%clk 0:02:38]}  h5 {[%clk 0:02:43]} 10. c3 {[%clk 0:02:37]}  h4 {[%clk 0:02:41]} 11. Nf1 {[%clk 0:02:37]}  h3 {[%clk 0:02:36]} 12. Nxh3 {[%clk 0:02:27]}  Bxh3 {[%clk 0:02:33]} 13. gxh3 {[%clk 0:02:25]}  Qa5 {[%clk 0:02:25]} 14. Kf2 {[%clk 0:02:21]}  Nb5 {[%clk 0:02:16]} 15. b4 {[%clk 0:01:57]}  cxb4 {[%clk 0:02:13]} 16. cxb4 {[%clk 0:01:57]}  Qxb4 {[%clk 0:02:11]} 17. Rb1 {[%clk 0:01:57]}  Nc3 {[%clk 0:02:11]} 18. Rxb4 {[%clk 0:01:37]}  Nxd1+ {[%clk 0:02:11]} 19. Ke2 {[%clk 0:01:36]}  Nxe3 {[%clk 0:02:12]} 20. Nxe3 {[%clk 0:01:36]}  b6 {[%clk 0:02:07]} 21. Bb5+ {[%clk 0:01:32]}  Ke7 {[%clk 0:02:05]} 22. Rc4 {[%clk 0:01:29]}  Rac8 {[%clk 0:01:52]} 23. Rhc1 {[%clk 0:01:27]}  Rc5 {[%clk 0:01:51]} 24. Rxc5 {[%clk 0:01:19]}  bxc5 {[%clk 0:01:51]} 25. Kf2 {[%clk 0:01:05]}  Rxh3 {[%clk 0:01:51]} 26. Kg2 {[%clk 0:01:04]}  Rh8 {[%clk 0:01:51]} 27. Rb1 {[%clk 0:01:02]}  Bh6 {[%clk 0:01:49]} 28. Nd1 {[%clk 0:00:56]}  Bf4 {[%clk 0:01:48]} 29. h3 {[%clk 0:00:54]}  Rh5 {[%clk 0:01:48]} 30. Bd3 {[%clk 0:00:53]}  Rg5+ {[%clk 0:01:48]} 31. Kf2 {[%clk 0:00:51]}  Bg3+ {[%clk 0:01:47]} 32. Ke2 {[%clk 0:00:50]}  Nh5 {[%clk 0:01:47]} 33. Rb7+ {[%clk 0:00:50]}  Kf6 {[%clk 0:01:47]} 34. Bb5 {[%clk 0:00:46]}  Nf4+ {[%clk 0:01:47]} 35. Kd2 {[%clk 0:00:44]}  Bh4 {[%clk 0:01:34]} 36. Ne3 {[%clk 0:00:43]}  Rg1 {[%clk 0:01:30]} 37. Ng4+ {[%clk 0:00:40]}  Kg5 {[%clk 0:01:29]} 38. Rxf7 {[%clk 0:00:40]}  Rg2+ {[%clk 0:01:25]} 39. Kc3 {[%clk 0:00:30]}  Be1+ {[%clk 0:01:25]} 40. Kb3 {[%clk 0:00:29]}  Nxh3 {[%clk 0:01:11]} 41. Nxe5 {[%clk 0:00:23]}  dxe5 {[%clk 0:01:09]} 42. d6 {[%clk 0:00:24]}  Nf4 {[%clk 0:01:05]} 43. Rxa7 {[%clk 0:00:22]}  c4+ {[%clk 0:01:03]} 44. Bxc4 {[%clk 0:00:21]}  Bf2 {[%clk 0:01:02]} 45. d7 {[%clk 0:00:20]}  Bb6 {[%clk 0:00:56]} 46. Rb7 {[%clk 0:00:18]}  Ba5 {[%clk 0:00:46]} 47. Rb5 {[%clk 0:00:18]}  Bc7 {[%clk 0:00:36]} 48. Rxe5+ {[%clk 0:00:17]}  Bxe5 {[%clk 0:00:34]} 49. d8=Q+ {[%clk 0:00:17]}  Kh6 {[%clk 0:00:34]} 50. Qh4+ {[%clk 0:00:16]}  Nh5 {[%clk 0:00:33]} 51. Bd5 {[%clk 0:00:14]}  Rb2+ {[%clk 0:00:32]} 52. Kc4 {[%clk 0:00:14]}  Rc2+ {[%clk 0:00:32]} 53. Kb5 {[%clk 0:00:14]}  Rb2+ {[%clk 0:00:31]} 54. Kc6 {[%clk 0:00:15]}  Rc2+ {[%clk 0:00:31]} 55. Kd7 {[%clk 0:00:15]}  Rc7+ {[%clk 0:00:30]} 56. Ke6 {[%clk 0:00:15]}  Bg3 {[%clk 0:00:29]} 57. Qd8 {[%clk 0:00:14]}  Nf4+ {[%clk 0:00:26]} 58. Kf6 {[%clk 0:00:13]}  Bh4+ {[%clk 0:00:26]} 59. Ke5 {[%clk 0:00:12]}  Nd3+ {[%clk 0:00:25]} 60. Kd4 {[%clk 0:00:12]}  Bxd8 {[%clk 0:00:26]} 61. Kxd3 {[%clk 0:00:12]}  Bf6 {[%clk 0:00:26]} 62. Ke3 {[%clk 0:00:11]}  Be5 {[%clk 0:00:25]} 63. f4 {[%clk 0:00:11]}  Rc3+ {[%clk 0:00:26]} 64. Kd2 {[%clk 0:00:11]}  Bd4 {[%clk 0:00:26]} 65. f5 {[%clk 0:00:12]}  gxf5 {[%clk 0:00:26]} 66. exf5 {[%clk 0:00:12]}  Kg5 {[%clk 0:00:27]} 67. Be6 {[%clk 0:00:13]}  Ra3 {[%clk 0:00:27]} 68. Kc2 {[%clk 0:00:13]}  Kf4 {[%clk 0:00:27]} 69. Kd2 {[%clk 0:00:13]}  Ke4 {[%clk 0:00:27]} 70. Ke2 {[%clk 0:00:14]}  Rh3 {[%clk 0:00:25]} 71. Kd2 {[%clk 0:00:14]}  Rh2+ {[%clk 0:00:25]} 72. Kc1 {[%clk 0:00:15]}  Kd3 {[%clk 0:00:25]} 73. Bd5 {[%clk 0:00:12]}  Rc2+ {[%clk 0:00:25]} 74. Kb1 {[%clk 0:00:12]}  Rf2 {[%clk 0:00:22]} 75. a4 {[%clk 0:00:11]}  Kc3 {[%clk 0:00:18]} 76. Be4 {[%clk 0:00:09]}  Rf1+ {[%clk 0:00:15]} 77. Ka2 {[%clk 0:00:09]}  Kb4 {[%clk 0:00:16]} 78. Bc6 {[%clk 0:00:08]}  Ra1# {[%clk 0:00:15]} 0-1


[Site "https://www.chess.com"]